Cogmind - Beta 16.1 @@@ ROGUE MODE // 2026.03.08 @ 12:46:06 Player: littleman Result: Destroyed by as-23194 with Assembled Heavy Rifle Performance ------------- Evolutions (0) 0 Regions Visited (2) 400 Robots Destroyed (11) 55 Value Destroyed (284) 284 Prototype IDs (0) 0 Alien Tech Used (0) 0 Bonus (33) 33 TOTAL SCORE: 772 Bonus ------- Follower Combat Kills 33 Cogmind --------- Core Integrity 0/250 Matter 272/300 Energy 60/275 System Corruption 7% Temperature Warm (152) Movement Core (950) Ox18 Location -10/Mines Parts ------- > --- POWER (1) -------- Deuterium Engine > --- PROPULSION (2) --- (None) > --- UTILITY (2) ------ High-capacity Storage Unit Improved Trap Extractor (0/6) > --- WEAPON (2) ------- Beam Rifle > --- INVENTORY (20) --- Light Ion Engine Light Ion Engine Heat Sink Heat Sink Medium Matter Pod (100) Medium Matter Pod (100) Visual Processing Unit ECM Suite Core Shielding Propulsion Shielding Light Armor Plating Hacking Suite Medium Laser Improved Datajack Peak State ------------ > --- POWER ------------ Light Nuclear Core > --- PROPULSION ------- Cesium-ion Thruster > --- UTILITY ---------- High-capacity Storage Unit Improved Trap Extractor > --- WEAPON ----------- Beam Rifle Light Assault Rifle > --- INVENTORY -------- Light Ion Engine Light Ion Engine Deuterium Engine Heat Sink Heat Sink Medium Matter Pod Medium Matter Pod Visual Processing Unit ECM Suite Core Shielding Propulsion Shielding Light Armor Plating Hacking Suite Medium Laser Improved Datajack Mining Laser [Rating: 16] Favorites ----------- Power Light Ion Engine Engine Light Ion Engine Power Core Light Nuclear Core Propulsion Wheel Wheel Wheel Flight Unit Cesium-ion Thruster Utility High-capacity Storage Unit Device ECM Suite Storage High-capacity Storage Unit Weapon Light Assault Rifle Energy Gun Medium Laser Energy Cannon Heavy Particle Cannon Ballistic Gun Light Assault Rifle Special Weapon Mining Laser Build | -11 -10 -10 ------- Run | Yrd Mat Min Slots Evolved . | . . . Power . | . . . Propulsion . | . . . Utility . | . . . Weapon . | . . . Parts Attached 17 | 8 2 7 Power 3 | 1 . 2 Engine 2 | 1 . 1 Core 1 | . . 1 Reactor . | . . . Propulsion 3 | 2 . 1 Treads . | . . . Leg . | . . . Wheel 2 | 2 . . Hover . | . . . Flight 1 | . . 1 Utility 5 | 2 2 1 Device 3 | 1 1 1 Storage 2 | 1 1 . Processor . | . . . Hackware . | . . . Protection . | . . . Artifact . | . . . Weapon 6 | 3 . 3 Energy Gun 3 | 2 . 1 Energy Cannon 1 | . . 1 Ballistic Gun 1 | 1 . . Ballistic Cannon . | . . . Launcher . | . . . Special Weapon 1 | . . 1 Impact Weapon . | . . . Slashing Weapon . | . . . Piercing Weapon . | . . . Special Melee Weapon . | . . . Unidentified Prototypes . | . . . Parts Lost 8 | 1 . 7 Power 1 | . . 1 Propulsion 3 | . . 3 Utility . | . . . Weapon 4 | 1 . 3 Highest Loss Streak 4 | 1 . 4 To Critical Strikes . | . . . Average Backups 8 | 2 3 15 Power 1 | . 1 2 Propulsion . | 1 . . Utility 4 | . 1 8 Weapon 1 | . 1 2 Tool/Special . | . . . Unused Backups 12 | . 3 9 Power 1 | . . 1 Propulsion 2 | . 2 . Utility 7 | . . 7 Weapon 1 | . 1 . Tool/Special 1 | . . 1 Average Slot Usage (%) 91 | . 98 83 Engine 7 | . 14 1 Core 6 | . . 12 Wheel 20 | . 28 13 Device 19 | . 25 14 Storage 8 | . 2 14 Energy Gun 7 | . 13 1 Energy Cannon 5 | . . 11 Ballistic Gun 13 | . 14 13 Peak Build Rating 16 | 6 7 16 Average Rating 10 | 4 6 14 On Entrance 4 | . 6 7 Avg Prop Armor Cover (%) . | . . . Naked Turns . | . . . Heaviest Build 55 | 7 48 55 Greatest Support 20 | 20 20 20 Greatest Overweight (x) 17 | . 2 17 Average Overweight (x) 2 | . . 4 Largest Inventory Capacity 20 | 5 20 20 Average Capacity 12 | 5 7 20 Most Carried 18 | 5 8 18 Average Carried 9 | 3 3 15 Final Capacity 20 | 5 20 20 Final Carried 14 | 5 8 14 Class Distribution -------------------- 100% | Mutant Dominant Class ---------------- Mutant | -10/Materials Mutant | -10/Mines Resources | -11 -10 -10 ----------- Run | Yrd Mat Min Matter Collected 568 | 296 240 32 Remotely . | . . . Salvage Created 469 | 74 307 88 Parts 25 | 7 15 3 Haulers Intercepted 1 | . 1 . Recyclers Shooed 1 | . 1 . Parts Field Recycled . | . . . Retrieved Matter . | . . . Parts Self-Destructed . | . . . Prevented . | . . . Parts Restored . | . . . Kills | -11 -10 -10 ------- Run | Yrd Mat Min Combat Hostiles Destroyed 7 | 1 2 4 Guns 6 | 1 2 3 Cannons 1 | . . 1 Classes Destroyed 8 | 2 3 3 Worker 1 | 1 . . Hauler 1 | . 1 . Recycler 2 | . 2 . Watcher 1 | . 1 . Grunt 3 | 1 2 . Sentry 1 | . . 1 Demolisher 2 | . . 2 Assembled 1 | . . 1 Best Kill Streak 2 | 1 2 2 Combat Bots Only 2 | 1 2 2 Max Kills in Single Turn 1 | 1 1 1 Gunslinging . | . . . Exploded . | . . . Melee . | . . . Uniques/NPCs Destroyed . | . . . Combat | -11 -10 -10 -------- Run | Yrd Mat Min Hostile Shots Fired 44 | 12 9 23 Missed 8 | 4 3 1 Hits 36 | 8 6 22 Melee 6 | . . 6 Projectile 30 | 8 6 16 AOE 8 | . . 8 Damage Taken 831 | 83 69 679 Core 254 | . 24 230 Absorbed by Shields . | . . . Core Remaining (%) 100 | 100 . . Volleys Fired 53 | 14 21 18 Largest 2 | 2 2 2 Hottest 95 | 70 70 95 Shots Fired 92 | 22 42 28 Gun 88 | 22 42 24 Cannon 4 | . . 4 Launcher . | . . . Special . | . . . Kinetic 47 | 14 21 12 Thermal 38 | 1 21 16 Explosive . | . . . Electromagnetic 7 | 7 . . Robot Hit Streak 6 | 3 6 5 Robot Miss Streak 5 | 4 4 5 Penetration Max . | . . . Secondary Targets 1 | . 1 . Max Gunslinging Chain 1 | . 1 . Shots Hit Robots 51 | 12 24 15 Core Hits 24 | 4 13 7 Critical Kills . | . . . Critical Parts Destroyed . | . . . Critical Strikes 2 | . 1 1 Burn 2 | . 1 1 Melee Attacks . | . . . Impact . | . . . Slashing . | . . . Piercing . | . . . Sneak Attacks . | . . . Combat Hostiles . | . . . Follow-up Attacks . | . . . Damage Inflicted 596 | 120 235 241 Guns 487 | 120 235 132 Cannons 100 | . . 100 Explosions . | . . . Melee . | . . . Ramming 9 | . . 9 Kinetic 238 | 70 124 44 Thermal 311 | 12 111 188 Explosive . | . . . Electromagnetic 38 | 38 . . Impact . | . . . Slashing . | . . . Piercing . | . . . Highest Corruption 7 | . . 7 Average Corruption 5 | . . 5 Corruption Purged . | . . . Corruption Blocked . | . . . Overload Shots . | . . . Overflow Damage . | . . . Projectiles . | . . . Explosions . | . . . Melee . | . . . Knockbacks . | . . . Impact . | . . . Kinetic . | . . . Secondary . | . . . Self-Inflicted Damage 4 | . . 4 Shots . | . . . Rammed 1 | . . 1 Targets Rammed 1 | . . 1 Kicked . | . . . Crushed . | . . . Highest Temperature 173 | 82 70 173 Average Temperature 52 | 46 16 87 Received Heat Transfer 102 | 48 36 18 Siege Activations . | . . . Martial Activations . | . . . Shielding Activations . | . . . Robots Disrupted . | . . . Combat Hostiles . | . . . Robots Corrupted . | . . . Combat Hostiles . | . . . Parts Fried . | . . . Impact Corruptions . | . . . Robots Melted . | . . . Combat Hostiles . | . . . Parts Melted . | . . . Heat Transferred 888 | 37 407 444 Parts Sabotaged . | . . . Parts Stolen . | . . . Parts Stripped . | . . . Power Chain Reactions . | . . . Alert | -11 -10 -10 ------- Run | Yrd Mat Min Maximum Alert Level . | . . . Low Security (%) 100 | 100 100 100 Level 1 . | . . . Level 2 . | . . . Level 3 . | . . . Level 4 . | . . . Level 5 . | . . . High Security . | . . . Max Security . | . . . Peak Influence 50 | 20 50 44 Initial 6 | . 6 . Average 5 | 2 6 5 Influence Increases 207 | 25 88 94 Destroy 0b10 Robot/C 140 | 20 40 80 Destroy 0b10 Robot/NC 25 | 5 20 . Destroy Leader 24 | . 14 10 Allied During Kill 4 | . . 4 Successful Hack 14 | . 14 . Influence Decreases 207 | 15 98 94 Entered New Map 4 | . 4 . Time Decay 165 | 15 94 56 Lost Part 34 | . . 34 Lost Ally 4 | . . 4 Squads Dispatched 1 | . 1 . Investigation . | . . . Extermination . | . . . Reinforcement 1 | . 1 . Assault . | . . . Garrison . | . . . Intercept . | . . . Searches Triggered . | . . . Construction Impeded . | . . . Haulers Reinforced . | . . . Active Scanning Responses . | . . . Cargo Convoy Interrupts . | . . . Stealth | -11 -10 -10 --------- Run | Yrd Mat Min Distress Signals 1 | . 1 . Communications Jammed . | . . . Distress Signals . | . . . Times Spotted 23 | 1 12 10 Peak Tracking Total 4 | 1 3 4 Tactical Retreats . | . . . Traps | -11 -10 -10 ------- Run | Yrd Mat Min Traps Triggered 2 | . . 2 Indirectly . | . . . Trap Hack Attempts . | . . . Triggered . | . . . Disarmed . | . . . Reprogrammed . | . . . Reused . | . . . Traps Extracted . | . . . Installed . | . . . Triggered . | . . . Machines | -11 -10 -10 ---------- Run | Yrd Mat Min Machines Disabled . | . . . Max in Single Turn . | . . . Machines Repaired . | . . . Machines Dismantled . | . . . Machines Sabotaged . | . . . Overloaded Fab Kills . | . . . Hacking | -11 -10 -10 --------- Run | Yrd Mat Min Machines Accessed 2 | . 1 1 Terminals 1 | . 1 . Fabricators . | . . . Repair Stations . | . . . Recycling Units . | . . . Scanalyzers . | . . . Garrison Access . | . . . Total Hacks 4 | . 3 1 Successful 2 | . 1 1 Failed 2 | . 2 . Catastrophic 1 | . 1 . Database Lockouts . | . . . Manual . | . . . Terminals 3 | . 3 . Fabricators . | . . . Repair Stations . | . . . Recycling Units . | . . . Scanalyzers . | . . . Garrison Access . | . . . Terminal Hacks 2 | . 1 1 Open Door 1 | . . 1 Zone Layout 1 | . 1 . Fabricator Hacks . | . . . Repair Station Hacks . | . . . Recycling Unit Hacks . | . . . Scanalyzer . | . . . Garrison Access Hacks . | . . . Unauthorized Hacks . | . . . Terminals . | . . . Fabricators . | . . . Repair Stations . | . . . Recycling Units . | . . . Scanalyzers . | . . . Garrison Access . | . . . Data Cores Recovered . | . . . Used . | . . . Hacking Detections 1 | . 1 . Full Trace Events . | . . . Feedback Events . | . . . Feedback Blocked . | . . . Robot Schematics Acquired . | . . . Robots Built . | . . . Authchips . | . . . Time . | . . . Total Robot Build Rating . | . . . Part Schematics Acquired . | . . . Parts Built . | . . . Authchips . | . . . Time . | . . . Total Part Build Rating . | . . . Part Studies Acquired . | . . . Parts Repaired . | . . . Time . | . . . Parts Recycled . | . . . Recycled Matter . | . . . Retrieved Matter . | . . . Retrieved Components . | . . . Parts Scanalyzed . | . . . Part Schematics Acquired . | . . . Parts Damaged . | . . . Bothacking | -11 -10 -10 ------------ Run | Yrd Mat Min Used RIF Installer . | . . . Robots Hacked . | . . . Non-combat . | . . . Combat . | . . . Robot Hacks Applied . | . . . Relay Couplers Released . | . . . Fabnet Peak Effective % . | . . . Robots Rewired . | . . . Allies Hacked . | . . . Hacks Repelled . | . . . Allies | -11 -10 -10 -------- Run | Yrd Mat Min Total Allies 2 | . . 2 Largest Group 2 | . . 2 Highest-Rated Group 36 | . . 36 Highest-Rated Ally 31 | . . 31 Total Orders . | . . . Ally Attacks 7 | . . 7 Total Damage 63 | . . 63 Kills 1 | . . 1 Allies Corrupted . | . . . Allies Melted . | . . . Intel | -11 -10 -10 ------- Run | Yrd Mat Min Active Infowar (turns) 566 | . 555 11 ECM 566 | . 555 11 Robot Analysis Total . | . . . Derelict Logs Recovered 1 | . . 1 Drone Launches . | . . . Drone Recoveries . | . . . Exploration | -11 -10 -10 ------------- Run | Yrd Mat Min Turns Passed 1252 | 118 571 563 Spaces Moved 636 | 87 236 313 Core 18 | 17 . 1 Treads . | . . . Legs . | . . . Wheels 618 | 70 236 312 Hover . | . . . Flight . | . . . Fastest Speed 50 | 50 80 110 Average Speed 119 | 74 87 155 Slowest Speed 900 | 80 110 900 Overloaded Moves . | . . . Propulsion Burnouts . | . . . Robots Hopped . | . . . Potential Cave-ins . | . . . Cave-ins Triggered . | . . . Exploration Rate (%) 27 | 6 29 47 Regions Visited 2 Branch Regions 1 Pre-discovered Areas . | . . . Known Exits Taken . | . . . Unknown Exits Taken 2 | 1 1 . Scrap Searched 1 | . . 1 Spaces Dug . | . . . Terrain Destroyed . | . . . Melee . | . . . Projectile . | . . . AOE . | . . . Terrain Rammed . | . . . Walls Destroyed . | . . . Machines Disabled . | . . . Actions | -11 -10 -10 --------- Run | Yrd Mat Min Total 1045 | 120 563 362 Wait 306 | . 294 12 Move 634 | 86 235 313 Hop . | . . . Pick Up 29 | 12 7 10 Fast Attach . | . . . Attach 13 | 7 1 5 Detach 1 | . . 1 Swap 5 | 1 2 2 Drop 3 | . 3 . Fire 53 | 14 21 18 Melee . | . . . Ram 1 | . . 1 Kick . | . . . Crush . | . . . Escape Stasis . | . . . Rewire . | . . . Trap . | . . . Miscellaneous . | . . . Route ------- -11/Scrapyard -10/Materials -10/Mines History --------- Turn | Location | Event 2 | -11/Scrapyard | Met Revision 17 68 | -11/Scrapyard | Discovered new exit (range 8) 119 | -11/Scrapyard | Entered Materials 307 | -10/Materials | Build established: Mutant 603 | -10/Materials | Discovered new exit (range 9) 690 | -10/Materials | Entered Mines 697 | -10/Mines | Met a Derelict who couldn't figure out how to use a Trap Extractor 785 | -10/Mines | Learned Materials trap positions 1149 | -10/Mines | Assembled infested the area 1210 | -10/Mines | Core integrity fell below 50% 1243 | -10/Mines | Core integrity fell below 20% 1253 | -10/Mines | Destroyed by as-23194 with Assembled Heavy Rifle Last Messages --------------- U-05 Engineer lays Concrete. as-25060 sneak attacks. U-05 Engineer system corrupted by crushing effect. U-05 Engineer system terminally corrupted. as-13676 destroyed. The unstable cave ceiling collapses. Lgt. Assault Rifle destroyed. System corrupted by crushing effect (+4). The unstable cave ceiling collapses. Lgt. Nuclear Core destroyed. Cesium-ion Thruster destroyed. System corrupted by crushing effect (+1). Knocked back. The unstable cave ceiling collapses. Mining Laser destroyed. System corrupted by crushing effect (+1). as-25060 suffers critical hit (Burn). The unstable cave ceiling collapses. Knocked back. Map ----- +----------------------------------------------------+ | ?????????????????????????????????????????????????? | | ?????????????????????????????????????????????????? | | ?????????????????????????????????????????????????? | | ?????????????????????????????????????????????????? | | ?????????????????????????????????????????????????? | | ?????????????????????????????????????????????????? | | ?????????????????###?????????????????????????????? | | ????????????????? #?????????????????????????????? | | ????????????????# #?????????????????????????????? | | ??????????????## ?????????????????????????????? | | ??????????????? #?????????????????????????????? | | ??????????????? #???????????????????????????? | | ??????????????## #######?????????????????????? | | #####?????????? # ??????????????? | | # #??????????#=%%# #######?????????????????????? | | #?????????## %! #??????????????????????????? | | #?????????## [ ##?????????????????????????? | | ###???????# % ###???????????????????????? | | ##??????# % ###?????????????????????? | | #???????# # ##????????????????????? | | ##????????## a ##???????????????????? | | ## ##?????##### ## #???????????????????? | | # #####?## # #???????????????????? | | #?# %a # #???????????????????? | | #### # # #???????????????????? | | ## #@ # #???????????????????? | | ## ### ##???????????????????? | | # ####### ## ###????????????????????? | | ########?# ### ###?????????????????????? | | ?##"!["### #?# # #################??????? | | ?#""/ ""## #?# ### #??????? | | ## %## #?# #?### ##### ######### ##?????? | | ##% ## ### #???## ##???# #???# #?????? | | ###++## ## #????# ##????# #???# """ #?????? | | # #????# #?????# #???# """ #?????? | | ###### #?????# #???# """ #?????? | | #?????# #???# #?????? | | ##### #?????# #???# #?????? | | # ##???# #####?# #???########?????? | | ## ##????# #?# #????????????????? | | #### #?????# #?# #????????????????? | | ### #????##### #?# #????????????????? | | ### #?????### ### ####?????????????? | | " #?##### #?##### #?????????????? | | " #?????## #####?# """ """ #?????????????? | | " #??????####?????# """ """ #?????????????? | | ! ##???????????????# ### """ """ #?????????????? | | ! ################## #?# #?????????????? | | % #?#############?????????????? | | ######################???????????????????????????? | +----------------------------------------------------+ Best States ------------- Heat Dissipation 35 Energy Generation 14 Energy Capacity 275 Matter Stores 310 Matter Capacity 400 Sight Range 16 Terrain Scan Density 10 ECM Strength 1 Evasion (%) 50 Trap Extractor Capacity 6 Item Schematics ----------------- None Robot Schematics ------------------ None Fabricated ------------ Nothing Repaired ---------- Nothing Studied --------- None Alien Tech Used ----------------- None Achievements -------------- None Challenges ------------ None Game ------ Seed CargoLayeredReplicator Manual? 0 Play Time 00:14:02 Cumulative 61.6 hours Start 2026.03.08 @ 12:33:05 End 2026.03.08 @ 12:46:06 Sessions 1 Manual Loads 0 Difficulty Rogue Special Mode None Game No. 2 Rogue 1 Adventurer 1 Explorer 0 Win Type - Total 0 Types 0/0/0/0/0/0/0/0/0/0 Lore% 1 Gallery% 15 Achievement% 16 Wizard Run 0 Options --------- Layout 1 ASCII 0 Keyboard 0 Movement Mouse Keybinds 0 Fullscreen 1 Font 24/Smallcaps Map View 50x35 Zoom Use 0% Tactical HUD 0 Map Filters NONE Filters NONE Steam 1 RUN: 1e980302-6c2a-49e2-a3f5-e505fcc5c1b3